Cogmind - Beta 14 @@@ ROGUE MODE // 2024.09.25 @ 08:09:00 Player: star Result: Destroyed by as-61185 with Assembled Blade Performance ------------- Evolutions (0) 0 Regions Visited (2) 400 Robots Destroyed (7) 35 Value Destroyed (409) 409 Prototype IDs (0) 0 Alien Tech Used (0) 0 Bonus (0) 0 TOTAL SCORE: 844 Bonus ------- None Cogmind --------- Core Integrity 0/250 Matter 279/300 Energy 100/100 System Corruption 0% Temperature Cool (0) Movement Treading (160) Location -10/Mines Parts ------- > --- POWER (1) -------- (None) > --- PROPULSION (2) --- Light Treads Light Treads > --- UTILITY (2) ------ Small Storage Unit Light Armor Plating > --- WEAPON (2) ------- Heavy Assault Rifle > --- INVENTORY (8) ---- Aluminum Leg Compact Wheel Core Shielding Light Armor Plating Particle Gun Heavy Assault Rifle Grenade Launcher Peak State ------------ > --- POWER ------------ Light Nuclear Core > --- PROPULSION ------- Aluminum Leg > --- UTILITY ---------- Improved Heat Sink Small Storage Unit > --- WEAPON ----------- Assault Rifle Heavy Assault Rifle > --- INVENTORY -------- Aluminum Leg Compact Wheel Grenade Launcher [Rating: 11] Favorites ----------- Power Ion Engine Engine Ion Engine Power Core Light Nuclear Core Propulsion Light Treads Treads Light Treads Leg Aluminum Leg Wheel Compact Wheel Utility Small Storage Unit Device Improved Heat Sink Storage Small Storage Unit Protection Light Armor Plating Weapon Heavy Assault Rifle Energy Gun Beam Rifle Ballistic Gun Heavy Assault Rifle Build | -11 -10 -10 ------- Run | Yrd Mat Min Slots Evolved . | . . . Power . | . . . Propulsion . | . . . Utility . | . . . Weapon . | . . . Parts Attached 23 | 9 1 13 Power 2 | 1 . 1 Engine 1 | 1 . . Core 1 | . . 1 Reactor . | . . . Propulsion 9 | 4 . 5 Treads 2 | . . 2 Leg 4 | 1 . 3 Wheel 3 | 3 . . Hover . | . . . Flight . | . . . Utility 5 | 1 1 3 Device 2 | . 1 1 Storage 1 | 1 . . Processor . | . . . Hackware . | . . . Protection 2 | . . 2 Artifact . | . . . Weapon 7 | 3 . 4 Energy Gun 3 | 2 . 1 Energy Cannon . | . . . Ballistic Gun 4 | 1 . 3 Ballistic Cannon . | . . . Launcher . | . . . Special Weapon . | . . . Impact Weapon . | . . . Slashing Weapon . | . . . Piercing Weapon . | . . . Special Melee Weapon . | . . . Unidentified Prototypes . | . . . Parts Lost 10 | . . 10 Power 2 | . . 2 Propulsion 3 | . . 3 Utility 1 | . . 1 Weapon 4 | . . 4 Highest Loss Streak 5 | . . 5 To Critical Strikes . | . . . Average Slot Usage (%) 83 | . 95 80 Engine 3 | . 14 . Core 2 | . . 3 Treads 12 | . . 15 Leg 5 | . . 6 Wheel 6 | . 28 1 Device 5 | . 10 4 Storage 14 | . 14 14 Protection 7 | . . 9 Energy Gun 9 | . 28 5 Ballistic Gun 15 | . . 18 Peak Build Rating 11 | 6 7 11 Average Rating 7 | 4 6 7 On Entrance 4 | . 6 7 Naked Turns . | . . . Heaviest Build 16 | 14 15 16 Greatest Support 40 | 26 26 40 Greatest Overweight (x) 4 | 1 . 4 Average Overweight (x) . | . . . Largest Inventory Capacity 8 | 8 8 8 Average Capacity 7 | 6 8 8 Most Carried 7 | 2 2 7 Average Carried 3 | . 2 4 Final Capacity 8 | 8 8 8 Final Carried 7 | 2 2 7 Class Distribution -------------------- 59% | Mutant 40% | Scavenger-Mutant Dominant Class ---------------- Mutant | -10/Materials Scavenger-Mutant | -10/Mines Resources | -11 -10 -10 ----------- Run | Yrd Mat Min Matter Collected 446 | 176 56 214 Remotely . | . . . Salvage Created 316 | . 56 260 Parts 19 | . 3 16 Haulers Intercepted . | . . . Recyclers Shooed . | . . . Parts Field Recycled . | . . . Retrieved Matter . | . . . Parts Self-Destructed . | . . . Prevented . | . . . Kills | -11 -10 -10 ------- Run | Yrd Mat Min Combat Hostiles Destroyed 8 | . 1 7 Guns 7 | . 1 6 AOE 1 | . . 1 Classes Destroyed 3 | . 1 2 Grunt 5 | . 1 4 Sentry 2 | . . 2 Assembled 1 | . . 1 Best Kill Streak 3 | . 1 3 Combat Bots Only 3 | . 1 3 Max Kills in Single Turn 1 | . 1 1 Gunslinging . | . . . Exploded 1 | . . 1 Melee . | . . . Uniques/NPCs Destroyed . | . . . Combat | -11 -10 -10 -------- Run | Yrd Mat Min Hostile Shots Fired 88 | . 6 82 Missed 18 | . 1 17 Damage Taken 1255 | . 80 1175 Core 275 | . 16 259 Absorbed by Shields . | . . . Core Remaining (%) 100 | 100 . . Volleys Fired 31 | . 6 25 Largest 2 | . 2 2 Hottest 90 | . 90 90 Shots Fired 48 | . 12 36 Gun 48 | . 12 36 Cannon . | . . . Launcher . | . . . Special . | . . . Kinetic 29 | . . 29 Thermal 10 | . 6 4 Explosive . | . . . Electromagnetic 9 | . 6 3 Robot Hit Streak 12 | . 5 12 Robot Miss Streak 1 | . 1 1 Penetration Max . | . . . Secondary Targets 1 | . . 1 Max Gunslinging Chain 1 | . . 1 Shots Hit Robots 35 | . 10 25 Core Hits 18 | . 4 14 Critical Kills . | . . . Critical Parts Destroyed . | . . . Critical Strikes . | . . . Melee Attacks . | . . . Impact . | . . . Slashing . | . . . Piercing . | . . . Sneak Attacks . | . . . Combat Hostiles . | . . . Follow-up Attacks . | . . . Damage Inflicted 575 | . 130 445 Guns 470 | . 130 340 Cannons . | . . . Explosions 105 | . . 105 Melee . | . . . Ramming . | . . . Kinetic 340 | . . 340 Thermal 155 | . 50 105 Explosive . | . . . Electromagnetic 80 | . 80 . Impact . | . . . Slashing . | . . . Piercing . | . . . Highest Corruption . | . . . Average Corruption . | . . . Corruption Purged . | . . . Corruption Blocked . | . . . Overload Shots . | . . . Overflow Damage 17 | . . 17 Projectiles . | . . . Explosions 17 | . . 17 Melee . | . . . Knockbacks . | . . . Impact . | . . . Kinetic . | . . . Secondary . | . . . Self-Inflicted Damage 145 | . . 145 Shots 4 | . . 4 Rammed . | . . . Targets Rammed . | . . . Kicked . | . . . Crushed . | . . . Highest Temperature 87 | . 45 87 Average Temperature 25 | . 27 24 Received Heat Transfer 455 | . 45 410 Siege Activations . | . . . Robots Corrupted . | . . . Combat Hostiles . | . . . Parts Fried 1 | . 1 . Impact Corruptions . | . . . Robots Melted . | . . . Combat Hostiles . | . . . Parts Melted . | . . . Heat Transferred 248 | . 148 100 Parts Sabotaged . | . . . Parts Stolen . | . . . Parts Stripped . | . . . Power Chain Reactions . | . . . Alert | -11 -10 -10 ------- Run | Yrd Mat Min Peak Influence 300 | . 45 300 Initial 17 | . . 17 Average 186 | . 3 257 Maximum Alert Level 1 | . . 1 Low Security (%) 34 | 100 100 9 Level 1 65 | . . 90 Level 2 . | . . . Level 3 . | . . . Level 4 . | . . . Level 5 . | . . . High Security . | . . . Max Security . | . . . Squads Dispatched 1 | . 1 . Investigation . | . . . Extermination . | . . . Reinforcement 1 | . 1 . Assault . | . . . Garrison . | . . . Intercept . | . . . Searches Triggered . | . . . Construction Impeded . | . . . Haulers Reinforced . | . . . Active Scanning Responses . | . . . Cargo Convoy Interrupts . | . . . Stealth | -11 -10 -10 --------- Run | Yrd Mat Min Distress Signals . | . . . Communications Jammed . | . . . Distress Signals . | . . . Times Spotted 19 | . 3 16 Peak Tracking Total 18 | . 2 18 Tactical Retreats 2 | . 1 1 Traps | -11 -10 -10 ------- Run | Yrd Mat Min Traps Triggered . | . . . Indirectly . | . . . Trap Hack Attempts . | . . . Triggered . | . . . Disarmed . | . . . Reprogrammed . | . . . Reused . | . . . Traps Extracted . | . . . Installed . | . . . Triggered . | . . . Machines | -11 -10 -10 ---------- Run | Yrd Mat Min Machines Disabled 11 | . . 11 Max in Single Turn 11 | . . 11 Machines Repaired . | . . . Machines Dismantled . | . . . Machines Sabotaged . | . . . Overloaded Fab Kills . | . . . Hacking | -11 -10 -10 --------- Run | Yrd Mat Min Machines Accessed . | . . . Terminals . | . . . Fabricators . | . . . Repair Stations . | . . . Recycling Units . | . . . Scanalyzers . | . . . Garrison Access . | . . . Total Hacks . | . . . Successful . | . . . Failed . | . . . Catastrophic . | . . . Database Lockouts . | . . . Manual . | . . . Terminals . | . . . Fabricators . | . . . Repair Stations . | . . . Recycling Units . | . . . Scanalyzers . | . . . Garrison Access . | . . . Terminal Hacks . | . . . Fabricator Hacks . | . . . Repair Station Hacks . | . . . Recycling Unit Hacks . | . . . Scanalyzer . | . . . Garrison Access Hacks . | . . . Unauthorized Hacks . | . . . Terminals . | . . . Fabricators . | . . . Repair Stations . | . . . Recycling Units . | . . . Scanalyzers . | . . . Garrison Access . | . . . Data Cores Recovered . | . . . Used . | . . . Hacking Detections . | . . . Full Trace Events . | . . . Feedback Events . | . . . Feedback Blocked . | . . . Robot Schematics Acquired . | . . . Robots Built . | . . . Authchips . | . . . Time . | . . . Total Robot Build Rating . | . . . Part Schematics Acquired . | . . . Parts Built . | . . . Authchips . | . . . Time . | . . . Total Part Build Rating . | . . . Parts Repaired . | . . . Time . | . . . Parts Recycled . | . . . Recycled Matter . | . . . Retrieved Matter . | . . . Retrieved Components . | . . . Parts Scanalyzed . | . . . Part Schematics Acquired . | . . . Parts Damaged . | . . . Bothacking | -11 -10 -10 ------------ Run | Yrd Mat Min Used RIF Installer . | . . . Robots Hacked . | . . . Non-combat . | . . . Combat . | . . . Robot Hacks Applied . | . . . Relay Couplers Released . | . . . Fabnet Peak Effective % . | . . . Robots Rewired . | . . . Allies Hacked . | . . . Hacks Repelled . | . . . Allies | -11 -10 -10 -------- Run | Yrd Mat Min Total Allies . | . . . Largest Group . | . . . Highest-Rated Group . | . . . Highest-Rated Ally . | . . . Total Orders . | . . . Ally Attacks . | . . . Total Damage . | . . . Kills . | . . . Allies Corrupted . | . . . Allies Melted . | . . . Intel | -11 -10 -10 ------- Run | Yrd Mat Min Robot Analysis Total . | . . . Derelict Logs Recovered . | . . . Drone Launches . | . . . Drone Recoveries . | . . . Exploration | -11 -10 -10 ------------- Run | Yrd Mat Min Turns Passed 604 | 50 117 437 Spaces Moved 340 | 38 77 225 Core 9 | 2 . 7 Treads 149 | . . 149 Legs 71 | 4 . 67 Wheels 111 | 32 77 2 Hover . | . . . Flight . | . . . Fastest Speed 50 | 50 90 100 Average Speed 131 | 93 90 151 Slowest Speed 250 | 120 90 250 Overloaded Moves . | . . . Propulsion Burnouts . | . . . Robots Hopped . | . . . Cave-ins Triggered . | . . . Exploration Rate (%) 20 | 3 24 34 Regions Visited 2 Branch Regions 1 Pre-discovered Areas . | . . . Known Exits Taken . | . . . Unknown Exits Taken 2 | 1 1 . Scrap Searched . | . . . Spaces Dug . | . . . Terrain Destroyed 39 | . . 39 Melee . | . . . Projectile . | . . . AOE 39 | . . 39 Terrain Rammed . | . . . Walls Destroyed . | . . . Machines Disabled . | . . . Actions | -11 -10 -10 --------- Run | Yrd Mat Min Total 437 | 47 112 278 Wait 40 | . 29 11 Move 338 | 37 76 225 Hop . | . . . Pick Up 5 | 1 . 4 Fast Attach 14 | 6 1 7 Attach 1 | . . 1 Detach . | . . . Swap 8 | 3 . 5 Drop . | . . . Fire 31 | . 6 25 Melee . | . . . Ram . | . . . Kick . | . . . Crush . | . . . Escape Stasis . | . . . Rewire . | . . . Trap . | . . . Miscellaneous . | . . . Route ------- -11/Scrapyard -10/Materials -10/Mines History --------- Turn | Location | Event 35 | -11/Scrapyard | Discovered new exit (range 14) 51 | -11/Scrapyard | Entered Materials 104 | -10/Materials | Discovered new exit (range 16) 168 | -10/Materials | Entered Mines 213 | -10/Mines | Lost 5 parts (1p1n1u2w) 241 | -10/Mines | YI-UF0 nonchalantly dropped a Grenade Launcher on the ground 314 | -10/Mines | Core integrity fell below 50% 315 | -10/Mines | Build established: Mutant 350 | -10/Mines | Lost 4 parts (1p2n1w) 584 | -10/Mines | Assembled infested the area 589 | -10/Mines | Core integrity fell below 20% 605 | -10/Mines | Destroyed by as-61185 with Assembled Blade Last Messages --------------- 00487_ K-01 Serf collects debris. 00487_ U-05 Engineer builds a Wall. 00488_ U-05 Engineer lays Concrete. 00491_ K-01 Serf collects debris. 00491_ U-05 Engineer builds a Wall. 00492_ U-05 Engineer lays Concrete. 00495_ K-01 Serf collects debris. 00495_ U-05 Engineer lays Concrete. 00516_ K-01 Serf collects debris. 00582_ YI-UF0 mumbles something. 00584_ ALERT: Infestation in the mines, dispatching Demolisher response squad. 00585_ YI-UF0: "KAPOW!" 00585_ YI-UF0: "BOOM!" 00585_ YI-UF0: "KAPOW!" 00585_ as-12391 destroyed. 00585_ YI-UF0: "KABOOM!" 00588_ YI-UF0: "Whaaaaaaaa!" 00601_ Beam Rifle destroyed. 00602_ as-95814 destroyed. Map ----- +----------------------------------------------------+ | ????????????##"## """""##""###??????###????? | | ????????????# ##???## ##???? | | ??####??????# "#???# ##??? | | ### #####?## ##???# #??? | | #?#" "#???# #??? | | ## #?# ##???# ???? | | = ## #?# #???# #???? | | !! ### #?#" "#???# ##??? | | ##?# ###" "#??## #??? | | ##??# #?# #??? | | #???###### ##?# #??? | | #???????## "#?## #??? | | #???????#" "### ##?? | | ##???????## "## #?? | | ##?????????##"# #######"####"## #?? | | #???????????### ############### ### #?? | | #?????????????# ###### ### ##?# ##?? | | #?????????????#### ## k #??#####??? | | #????????######### ## ## ##?????????? | | ##? ### #??????????? | | ??? ### #??????????? | | ??????################### ##?????????? | | ????????????????# #a #?????????? | | ????????????????# aaa #?????????? | | ????????????????# a aa ## #?????????? | | ????????????????# # @ #### ##?????????? | | ????????????????## #####??####??????????? | | ????????????????# #????????????????????? | | ????????????????# #????????????????????? | | ????????????????## ###????????????????????? | | ?????????????????## #??????????????????????? | | ??????????????????# #??????????????????????? | | ?????????????????? #??????????????????????? | | ????????????????? #??????????????????????? | | ???????????????? ??????????????????????? | | ???????????????? ??????????????????????? | | ??????????????? $ ??????????????????????? | | ?????????????? ??????????????????????? | | ?????????????# ??????????????????????? | | ?????????????## ??????????????????????? | | ??????????????# ??????????????????????? | | ?????????????? ??????????????????????? | | ?????????????? ==% ??????????????????????? | | ????????????????[%% ??????????????????????? | | ??????????????????= ??????????????????????? | | ????????????????????????????????????????????? | | ????????????????????????????????????????????? | | ????????????????????????????????????????????? | | ????????????????????????????????????????????? | | ????????????????????????????????????????????? | +----------------------------------------------------+ Best States ------------- Heat Dissipation 39 Energy Generation 14 Energy Capacity 250 Matter Stores 300 Matter Capacity 300 Sight Range 16 Terrain Scan Density 10 Armor Coverage 150 Evasion (%) 55 Recoil Reduction 2 Item Schematics ----------------- None Robot Schematics ------------------ None Fabricated ------------ Nothing Alien Tech Used ----------------- None Achievements -------------- None Challenges ------------ None Game ------ Seed LinearGatlingPendant Manual? 0 Play Time 00:08:14 Cumulative 98.9 hours Start 2024.09.25 @ 08:03:14 End 2024.09.25 @ 08:09:00 Sessions 1 Manual Loads 0 Difficulty Rogue Special Mode None Game No. 168 Rogue 168 Adventurer 0 Explorer 0 Win Type - Total 0 Types 0/0/0/0/0/0/0/0/0 Lore% 48 Gallery% 51 Achievement% 41 Wizard Run 0 Options --------- Layout 0 ASCII 0 Keyboard 1 Movement Numpad Keybinds 0 Fullscreen 2 Font 18/SmallcapsGlow Map View 76x50 Zoom Use 0% Tactical HUD 1 Map Filters NONE Filters NONE Steam 1 RUN: 6a4c630c-6534-4463-83b0-1de4fc6af400